[Event "EYCC Open U14 2018"]
[Site "Riga"]
[Date "2018.08.24"]
[Round "5"]
[White "Patrelakis, Evaggelos"]
[Black "Kirillov, Dmitry"]
[Result "1/2-1/2"]
[ECO "C54"]
[WhiteElo "2235"]
[BlackElo "2209"]
[Annotator "NA"]
[PlyCount "66"]
[EventDate "2018.08.20"]
[EventType "swiss"]
[EventCountry "LAT"]
[SourceTitle "playchess.com"]
[Source "ChessBase"]
[SourceQuality "1"]
[TimeControl "40/5400+30:1800+30"]

1. e4 {[%emt 0:00:00]} e5 {[%emt 0:00:00]} 2. Nf3 {[%emt 0:00:00]} Nc6 {[%emt 0:00:00]} 3. Bc4 {[%emt 0:00:00]} Bc5 {[%emt 0:00:00]} 4. c3 {[%emt 0:00:04]} Nf6 {[%emt 0:05:47]} 5. d3 {[%emt 0:00:15]} h6 {[%emt 0:01:01]} 6. Bb3 {[%emt 0:00:48] C54: Giuoco Piano: 4 c3 Nf6, main lines with 5 d4 and 5 d3} (6. b4 Bb6 7. a4 a6 8. O-O O-O 9. Bb3 d6 10. Nbd2 Be6 11. Bxe6 fxe6 12. Nc4 Ba7 13. Qb3 Qe8 14. Be3 Bxe3 15. Nxe3 {½-½ (54) Rapport,R (2707)-Safarli,E (2639) Riadh 2017}) 6... O-O {[%emt 0:00:40]} 7. h3 {[%emt 0:00:31]} d5 {[%emt 0:03:03]} 8. Qe2 {[%emt 0:01:56]} Re8 {[%emt 0:11:28]} 9. Nbd2 {[%emt 0:03:49]} Be6 {[%emt 0:04:27] LiveBook: 3 Games} 10. g4 {[%emt 0:08:33]} Qd7 {[%emt 0:13:43]} 11. Nf1 $146 {[%emt 0:08:34]} (11. g5 $11 hxg5 12. Nxg5) ({Predecessor:} 11. Ba4 Qd6 12. Nf1 a6 13. Ng3 Rad8 14. Nf5 Bxf5 15. gxf5 dxe4 16. dxe4 {1-0 (44) Turebayeva,A (2089)-Kiseleva,O (1752) Satka 2013}) 11... Rad8 {[%emt 0:04:41]} 12. Ng3 $1 {[%emt 0:05:29]} a5 {[%emt 0:03:05]} 13. g5 {[%emt 0:06:27]} dxe4 {[%emt 0:04:40]} 14. dxe4 {[%emt 0:01:01]} Bxb3 {[%emt 0:01:18]} 15. axb3 {[%emt 0:00:58]} hxg5 {[%emt 0:00:26]} 16. Bxg5 {[%emt 0:02:07]} Qe6 {[%emt 0:00:32]} 17. Nf5 {[%emt 0:07:08]} Ne7 {[%emt 0:01:00]} 18. Nxe7+ {[%emt 0:19:53]} Bxe7 {[%emt 0:00:48]} 19. Rxa5 {[%emt 0:10:33]} Ra8 {[%emt 0:02:01]} 20. Ra4 {[%emt 0:00:52]} Rxa4 {[%emt 0:09:45]} 21. bxa4 {[%emt 0:00:01]} Ra8 {[%emt 0:01:38]} 22. Qb5 {[%emt 0:03:25]} Bd6 $14 {[%emt 0:07:36]} (22... Nxe4 $15 23. Qxb7 Rxa4 24. Bxe7 Qxe7) 23. Bxf6 {[%emt 0:04:07]} Qxf6 {[%emt 0:00:13]} 24. Nd2 {[%emt 0:00:20]} c6 {[%emt 0:04:39]} 25. Qc4 {[%emt 0:01:40]} Qf4 {[%emt 0:01:32]} 26. Ke2 {[%emt 0:02:31]} Rd8 {[%emt 0:01:11]} 27. Qd3 {[%emt 0:00:38]} Qh4 {[%emt 0:05:10]} 28. Qg3 {[%emt 0:01:15]} Qh6 {[%emt 0:00:46]} 29. Nc4 {[%emt 0:02:01]} b5 {[%emt 0:01:43]} 30. axb5 {[%emt 0:01:37]} cxb5 {[%emt 0:00:06]} 31. Nxd6 {[%emt 0:00:09]} Qxd6 {[%emt 0:00:29]} 32. Qe3 {[%emt 0:01:00]} b4 {[%emt 0:01:09]} 33. Ra1 {[%emt 0:01:05]} Qc6 {[%emt 0:05:21]} 1/2-1/2

[Event "EYCC Open U14 2018"]
[Site "Riga"]
[Date "2018.08.24"]
[Round "5"]
[White "Larkin, Vladislav"]
[Black "Tadic, Stefan"]
[Result "1-0"]
[ECO "A45"]
[WhiteElo "2212"]
[BlackElo "2240"]
[Annotator "NA"]
[PlyCount "117"]
[EventDate "2018.08.20"]
[EventType "swiss"]
[EventCountry "LAT"]
[SourceTitle "playchess.com"]
[Source "ChessBase"]
[SourceQuality "1"]
[TimeControl "40/5400+30:1800+30"]

1. d4 {[%emt 0:00:00]} Nf6 {[%emt 0:00:00]} 2. Nc3 {[%emt 0:00:00]} d5 {[%emt 0:00:31]} 3. Bf4 {[%emt 0:00:00]} Bf5 {[%emt 0:01:46] D00: 1 d4 d5: Unusual lines} (3... e6 4. Nb5 Na6 5. e3 c6 6. Nc3 Nc7 7. Nf3 Bd6 8. Ne5 O-O 9. Qf3 Bb4 10. Bd3 Nb5 11. O-O Nxc3 12. bxc3 Bxc3 {0-1 (33) Jobava,B (2690)-Anand,V (2782) Riadh 2017}) 4. f3 {[%emt 0:00:04]} c6 {[%emt 0:01:15]} 5. Qd2 {[%emt 0:00:45]} e6 {[%emt 0:01:11]} 6. g4 {[%emt 0:00:07]} Bg6 {[%emt 0:00:17]} 7. h4 {[%emt 0:00:12]} h5 {[%emt 0:06:05]} 8. g5 {[%emt 0:00:22] LiveBook: 6 Games} Nfd7 {[%emt 0:03:21]} 9. a3 {[%emt 0:02:06]} Be7 $146 {[%emt 0:15:34]} ({Predecessor:} 9... Nb6 10. e4 Bd6 11. Nh3 Bxf4 12. Nxf4 {1-0 (52) Larkin,V (1915)-Bondar,D (1906) Bucha 2016}) 10. Nh3 {[%emt 0:05:41]} (10. e4 $14) 10... O-O {[%emt 0:08:56]} 11. Bh2 {[%emt 0:03:09]} Re8 {[%emt 0:02:46]} 12. Nf4 {[%emt 0:04:10]} Nf8 {[%emt 0:01:21]} 13. e3 {[%emt 0:08:25]} Nbd7 {[%emt 0:03:58]} 14. Nd3 {[%emt 0:03:19]} (14. Be2 $11) 14... b5 {[%emt 0:03:37]} 15. e4 {[%emt 0:22:42]} a5 {[%emt 0:06:02]} 16. Bg2 {[%emt 0:00:18]} Qb6 {[%emt 0:08:36]} (16... b4 $5 {[%cal Rb4c3]} 17. Ne2 bxa3 $11) 17. Ne2 {[%emt 0:01:16]} dxe4 {[%emt 0:03:54]} 18. fxe4 {[%emt 0:00:04]} c5 {[%emt 0:00:37]} 19. c3 {[%emt 0:01:53]} Rad8 {[%emt 0:02:36]} 20. O-O {[%emt 0:06:54]} c4 {[%emt 0:07:07]} 21. Nf2 {[%emt 0:00:41]} e5 {[%emt 0:01:16]} 22. Qe3 {[%emt 0:05:55]} Ne6 {[%emt 0:01:46]} 23. Rad1 {[%emt 0:00:31]} f6 $17 {[%emt 0:01:47]} 24. gxf6 {[%emt 0:01:09]} Bxf6 {[%emt 0:01:25]} 25. Qg3 {[%emt 0:00:37]} Kh7 {[%emt 0:00:31]} 26. d5 {[%emt 0:01:21]} Nec5 {[%emt 0:00:17]} 27. Kh1 {[%emt 0:00:36]} Nf8 {[%emt 0:05:50]} 28. Ng1 {[%emt 0:01:35]} Rd6 {[%emt 0:01:21]} 29. Ngh3 {[%emt 0:00:40]} Qd8 {[%emt 0:00:25]} 30. Ng5+ {[%emt 0:00:42]} Kg8 {[%emt 0:01:25]} 31. Qe3 {[%emt 0:00:32]} Na4 {[%emt 0:00:59]} 32. Rd2 {[%emt 0:02:51]} Qb6 {[%emt 0:01:05]} 33. Qe2 {[%emt 0:00:54]} Bxg5 {[%emt 0:05:04]} 34. hxg5 {[%emt 0:00:07]} Bf7 {[%emt 0:01:17]} 35. Nh3 {[%emt 0:02:19]} Qc7 {[%emt 0:00:40]} 36. Rf5 {[%emt 0:07:35]} Nd7 {[%emt 0:01:39]} 37. Ng1 {[%emt 0:07:41]} Bg6 {[%emt 0:00:15]} 38. Rf1 {[%emt 0:00:07]} Nac5 {[%emt 0:00:17]} 39. Qe3 {[%emt 0:01:37]} Qd8 {[%emt 0:01:18]} 40. Re2 {[%emt 0:00:00]} Qe7 {[%emt 0:00:00]} 41. Bg3 {[%emt 0:12:48]} Rb6 {[%emt 0:06:13]} 42. Rd2 {[%emt 0:00:53]} b4 {[%emt 0:04:29]} 43. axb4 {[%emt 0:00:04]} axb4 {[%emt 0:00:04]} 44. cxb4 {[%emt 0:00:56]} Nb3 {[%emt 0:05:41]} 45. Rdf2 {[%emt 0:00:52]} Nd4 {[%emt 0:01:50]} 46. Nf3 {[%emt 0:09:05]} Nxf3 {[%emt 0:01:11]} 47. Rxf3 {[%emt 0:01:12]} Rxb4 {[%emt 0:00:54]} 48. Be1 {[%emt 0:01:23]} Rxb2 {[%emt 0:01:52]} 49. Bh3 {[%emt 0:01:58]} Nb6 {[%emt 0:07:28]} 50. Be6+ {[%emt 0:00:49]} Kh7 {[%emt 0:00:47]} 51. Rf7 {[%emt 0:01:24]} Rb3 {[%emt 0:02:45]} 52. Bc3 {[%emt 0:07:11]} Qa3 {[%emt 0:01:34]} 53. Bxe5 Rg8 54. Qf4 {[%emt 0:06:09]} Re3 {[%emt 0:02:02]} 55. Bf5 {[%emt 0:00:33]} Bxf5 {[%emt 0:01:05]} 56. Qxf5+ {[%emt 0:00:05]} Kh8 {[%emt 0:00:01]} 57. Bxg7+ {[%emt 0:00:10]} Rxg7 {[%emt 0:00:09]} 58. Rf8+ {[%emt 0:00:02]} Rg8 {[%emt 0:00:19]} 59. Qf6+ {[%emt 0:00:04]} 1-0

[Event "EYCC Open U14 2018"]
[Site "Riga"]
[Date "2018.08.24"]
[Round "5"]
[White "Risteski, Emil"]
[Black "Ognean, Mihnea Ionut"]
[Result "0-1"]
[ECO "B30"]
[WhiteElo "2081"]
[BlackElo "2293"]
[Annotator "NA"]
[PlyCount "36"]
[EventDate "2018.08.20"]
[EventType "swiss"]
[EventCountry "LAT"]
[SourceTitle "playchess.com"]
[Source "ChessBase"]
[SourceQuality "1"]
[TimeControl "40/5400+30:1800+30"]

1. e4 {[%emt 0:00:00] Finkel,A} c5 {[%emt 0:00:00]} 2. Nf3 {[%emt 0:00:03]} Nc6 {[%emt 0:00:00]} 3. Nc3 {[%emt 0:00:15]} e5 {[%emt 0:01:47]} 4. Bc4 {[%emt 0:00:36]} Be7 {[%emt 0:00:07]} 5. d3 {[%emt 0:00:29]} Nf6 {[%emt 0:00:33]} 6. Nd2 d6 {[%emt 0:00:24]} 7. Nf1 {[%emt 0:01:05]} Bg4 {[%emt 0:00:23]} 8. f3 {[%emt 0:00:11]} Be6 {[%emt 0:00:05]} 9. Ne3 {[%emt 0:00:16]} O-O {[%emt 0:00:59]} 10. O-O {[%emt 0:00:17]} Nh5 {[%emt 0:04:36] B30: Sicilian: 2...Nc6 3 Bb5, lines without ...g6} 11. Ned5 {[%emt 0:15:53]} Bg5 {[%emt 0:07:48] LiveBook: 4 Games} 12. Kh1 $146 {[%emt 0:06:55]} ({Predecessor:} 12. Bxg5 Qxg5 13. Qc1 Qd8 14. a4 h6 15. Rf2 Ne7 16. Qd2 Nxd5 17. Nxd5 Nf6 18. Nxf6+ Qxf6 19. b3 b6 20. Raf1 Rad8 21. Qc3 Qg6 22. a5 Rb8 23. f4 exf4 24. Rxf4 Qg5 25. axb6 {½-½ (25) Adams,M (2719)-Leko,P (2763) San Luis 2005 CBM 110 [Finkel,A]}) 12... Rb8 {[%emt 0:12:12]} 13. a4 Nd4 14. g3 {[%emt 0:25:00]} Bxc1 {[%emt 0:07:12]} 15. Rxc1 {[%emt 0:02:00]} Qg5 {[%emt 0:03:11]} 16. Nb5 {[%emt 0:15:57]} Qh6 {[%emt 0:19:21]} 17. Qe1 {[%emt 0:00:29]} Ne2 {[%emt 0:03:11]} 18. Kg2 $19 {[%emt 0:01:55]} Bh3+ {[%emt 0:01:49]} 0-1

[Event "EYCC Open U14 2018"]
[Site "Riga"]
[Date "2018.08.24"]
[Round "5"]
[White "Karadzhov, Ivan"]
[Black "Suleymanli, Aydin Elshan"]
[Result "1/2-1/2"]
[ECO "A05"]
[WhiteElo "2009"]
[BlackElo "2323"]
[Annotator "NA"]
[PlyCount "107"]
[EventDate "2018.08.20"]
[EventType "swiss"]
[EventCountry "LAT"]
[SourceTitle "playchess.com"]
[Source "ChessBase"]
[SourceQuality "1"]
[TimeControl "40/5400+30:1800+30"]

1. Nf3 {[%emt 0:00:00]} Nf6 {[%emt 0:00:00]} 2. g3 {[%emt 0:00:07]} b5 {[%emt 0:00:00]} 3. Bg2 {[%emt 0:00:30]} Bb7 {[%emt 0:00:03]} 4. d3 {[%emt 0:00:28]} c5 {[%emt 0:04:36]} 5. O-O {[%emt 0:01:59]} d6 {[%emt 0:01:51] A05: Réti Opening: 1 Nf3 Nf6} 6. e4 {[%emt 0:03:37]} g6 {[%emt 0:03:32] LiveBook: 8 Games} 7. Nc3 $146 {[%emt 0:03:30]} ({Predecessor:} 7. d4 cxd4 8. Nxd4 a6 9. Re1 e5 10. Nb3 Bg7 11. a4 b4 12. a5 O-O 13. Ra4 {1-0 (59) Kramnik,V (2777)-Ghaem Maghami,E (2596) Berlin 2015}) 7... b4 {[%emt 0:00:48]} 8. Ne2 {[%emt 0:00:27]} Bg7 {[%emt 0:00:11]} 9. h3 {[%emt 0:04:22]} O-O {[%emt 0:00:32]} 10. Nd2 {[%emt 0:01:13]} Nc6 {[%emt 0:08:15]} 11. f4 {[%emt 0:03:27]} Nd7 {[%emt 0:01:38]} 12. g4 {[%emt 0:05:26]} Nd4 {[%emt 0:07:51]} 13. Nxd4 {[%emt 0:03:18]} Bxd4+ {[%emt 0:01:37]} 14. Kh1 {[%emt 0:00:18]} e6 {[%emt 0:06:00]} 15. Nf3 {[%emt 0:02:02]} Bg7 {[%emt 0:00:12]} 16. h4 {[%emt 0:07:02]} f5 {[%emt 0:09:07]} 17. exf5 {[%emt 0:13:33]} exf5 {[%emt 0:00:55]} 18. g5 {[%emt 0:00:49]} Qe7 {[%emt 0:01:41]} 19. Qd2 {[%emt 0:03:40]} Rfe8 {[%emt 0:03:54]} 20. c3 {[%emt 0:03:55]} (20. a3 $15) 20... Qf7 $17 {[%emt 0:05:41]} 21. Qc2 {[%emt 0:06:21]} bxc3 {[%emt 0:04:13]} 22. bxc3 {[%emt 0:00:49]} c4 {[%emt 0:00:23]} 23. Ba3 {[%emt 0:02:05]} Re3 {[%emt 0:02:17]} 24. d4 {[%emt 0:04:15]} Be4 {[%emt 0:05:37]} 25. Qc1 {[%emt 0:02:14]} Rd3 {[%emt 0:01:07]} 26. Ne1 {[%emt 0:03:51]} Qd5 {[%emt 0:00:53]} 27. Rf2 {[%emt 0:04:16]} Bxg2+ {[%emt 0:04:24]} 28. Nxg2 {[%emt 0:03:34]} Re8 {[%emt 0:00:26]} 29. Kh2 {[%emt 0:01:51]} h6 {[%emt 0:01:37]} 30. Rb1 {[%emt 0:02:40]} Re4 {[%emt 0:06:40]} 31. Bb2 {[%emt 0:02:02]} hxg5 {[%emt 0:01:26]} 32. hxg5 {[%emt 0:00:51]} Re8 {[%emt 0:01:12]} 33. Qc2 {[%emt 0:03:55]} Nb6 {[%emt 0:01:39]} 34. Rd1 {[%emt 0:02:29]} Rxd1 {[%emt 0:02:09]} 35. Qxd1 {[%emt 0:00:06]} Re4 {[%emt 0:01:02]} 36. Re2 {[%emt 0:02:08]} Kf7 {[%emt 0:02:10]} 37. Qe1 {[%emt 0:00:28]} Rxe2 {[%emt 0:02:24]} 38. Qxe2 {[%emt 0:00:04]} Na4 {[%emt 0:02:45]} 39. Qc2 {[%emt 0:01:18]} Nb6 {[%emt 0:00:33]} 40. Kg3 {[%emt 0:00:00]} Qa5 {[%emt 0:00:00]} 41. Bc1 {[%emt 0:02:33]} Nd5 {[%emt 0:01:39]} 42. Bd2 {[%emt 0:00:25]} Bf8 {[%emt 0:01:19]} 43. Ne3 {[%emt 0:00:45]} Nxe3 {[%emt 0:00:26]} 44. Bxe3 {[%emt 0:00:06]} d5 {[%emt 0:00:22]} 45. Qb2 {[%emt 0:04:37]} Qb6 {[%emt 0:00:12]} 46. Bc1 {[%emt 0:06:42]} Qxb2 {[%emt 0:04:48]} 47. Bxb2 {[%emt 0:00:04]} Ke6 {[%emt 0:00:09]} 48. Kf2 {[%emt 0:00:46]} Kd7 {[%emt 0:00:07]} 49. Ke2 {[%emt 0:00:57]} Kc6 {[%emt 0:00:12]} 50. Kd1 {[%emt 0:00:31]} Kb5 {[%emt 0:00:16]} 51. Kc2 {[%emt 0:00:25]} Ka4 {[%emt 0:00:08]} 52. Kb1 {[%emt 0:01:29]} Be7 {[%emt 0:00:29]} 53. Bc1 {[%emt 0:00:26]} Bd6 {[%emt 0:00:27]} 54. Bd2 {[%emt 0:00:46]} 1/2-1/2

[Event "EYCC Open U14 2018"]
[Site "Riga"]
[Date "2018.08.26"]
[Round "6"]
[White "Makarian, Rudik"]
[Black "Popov, Konstantin"]
[Result "0-1"]
[ECO "A05"]
[WhiteElo "2378"]
[BlackElo "2198"]
[Annotator "NA"]
[PlyCount "110"]
[EventDate "2018.08.20"]
[EventType "swiss"]
[EventCountry "LAT"]
[SourceTitle "playchess.com"]
[Source "ChessBase"]
[SourceQuality "1"]
[TimeControl "40/5400+30:1800+30"]

1. Nf3 {[%emt 0:00:00]} Nf6 {[%emt 0:00:00]} 2. g3 {[%emt 0:00:06]} g6 {[%emt 0:00:49]} 3. Bg2 {[%emt 0:00:09]} Bg7 {[%emt 0:00:11]} 4. c4 {[%emt 0:00:35]} d5 {[%emt 0:01:03]} 5. cxd5 {[%emt 0:00:38]} O-O {[%emt 0:00:41]} 6. O-O {[%emt 0:00:57]} Nxd5 {[%emt 0:01:14]} 7. Nc3 {[%emt 0:02:03]} Nb6 {[%emt 0:01:45]} 8. d3 {[%emt 0:01:06]} Nc6 {[%emt 0:02:15]} 9. Be3 {[%emt 0:02:38]} e5 {[%emt 0:01:25]} 10. Rc1 {[%emt 0:00:49]} Nd4 {[%emt 0:01:29] A16: Englische Eröffnung} 11. Qd2 {[%emt 0:05:54]} (11. Ne4 h6 12. Nc5 c6 13. a4 Qe7 14. a5 Nd5 15. Bxd4 exd4 16. Nb3 Rd8 17. a6 Nb4 18. axb7 Bxb7 {0-1 (75) Kurnosov,I (2657)-Le,Q (2712) Khanty-Mansiysk 2013}) 11... Re8 {[%emt 0:05:19]} 12. Bh6 {[%emt 0:03:46]} Bh8 {[%emt 0:05:17]} 13. Nxd4 {[%emt 0:00:29]} exd4 {[%emt 0:00:22]} 14. Ne4 {[%emt 0:00:03]} Nd5 {[%emt 0:04:40] LiveBook: 4 Games} 15. Rc4 {[%emt 0:22:27]} c6 {[%emt 0:20:00]} 16. Bg5 {[%emt 0:05:24]} f6 {[%emt 0:03:20]} 17. Bh6 {[%emt 0:00:08]} Nb6 {[%emt 0:09:22]} 18. Rc2 {[%emt 0:02:06]} Nd5 $146 {[%emt 0:06:37]} ({Vorgänger:} 18... Qe7) 19. a3 {[%emt 0:09:00]} f5 {[%emt 0:06:19]} 20. Ng5 {[%emt 0:01:45]} Qd6 {[%emt 0:04:05]} 21. Qa5 {[%emt 0:10:24]} Nc7 {[%emt 0:07:48]} 22. Qa4 {[%emt 0:00:16]} Ne6 {[%emt 0:04:01]} 23. Qb3 {[%emt 0:13:25]} Bg7 {[%emt 0:02:38]} 24. Bxg7 {[%emt 0:01:48]} Kxg7 {[%emt 0:00:07]} 25. Nxe6+ {[%emt 0:00:02]} Rxe6 {[%emt 0:00:50]} 26. Rfc1 {[%emt 0:03:09]} Re7 {[%emt 0:01:52]} 27. Qa4 {[%emt 0:03:07]} Be6 {[%emt 0:00:34]} 28. Rc5 {[%emt 0:02:27]} Bf7 {[%emt 0:01:24]} 29. Bf3 {[%emt 0:01:09]} h5 {[%emt 0:01:07]} 30. b4 {[%emt 0:00:45]} a6 {[%emt 0:00:27]} 31. b5 {[%emt 0:03:44]} cxb5 {[%emt 0:00:08]} 32. Rxb5 {[%emt 0:00:03]} axb5 {[%emt 0:05:14]} 33. Qxa8 {[%emt 0:00:01]} g5 {[%emt 0:01:27]} 34. Re1 {[%emt 0:05:12]} Qc7 {[%emt 0:01:05]} 35. Qa7 {[%emt 0:00:52]} Qc3 {[%emt 0:00:17]} 36. Kf1 {[%emt 0:00:29]} g4 {[%emt 0:01:29]} 37. Bh1 {[%emt 0:00:24]} Rd7 {[%emt 0:00:52]} 38. Qb8 {[%emt 0:00:34]} Qc7 {[%emt 0:00:29]} 39. Qxc7 {[%emt 0:00:54]} Rxc7 {[%emt 0:00:01]} 40. Rb1 {[%emt 0:00:00]} Be8 {[%emt 0:00:00]} 41. Ke1 {[%emt 0:08:21]} Kf6 {[%emt 0:14:43]} 42. Kd2 {[%emt 0:01:00]} Rc3 {[%emt 0:16:09]} 43. Rb4 {[%emt 0:05:14]} Ke5 {[%emt 0:10:31]} 44. Rxd4 {[%emt 0:00:19]} Rxa3 {[%emt 0:00:28]} 45. Rd5+ {[%emt 0:06:48]} Ke6 {[%emt 0:00:22]} 46. Rc5 {[%emt 0:00:34]} b6 {[%emt 0:02:09]} 47. Rc1 {[%emt 0:04:32]} Kd6 {[%emt 0:00:57]} 48. f4 {[%emt 0:00:45]} b4 {[%emt 0:01:00]} 49. Rc4 {[%emt 0:05:01]} Ra2+ {[%emt 0:00:24]} 50. Ke3 $19 {[%emt 0:01:27]} b3 {[%emt 0:00:21]} 51. Rb4 {[%emt 0:01:52]} b2 {[%emt 0:02:08]} 52. Rxb6+ {[%emt 0:00:44]} Kc5 {[%emt 0:00:29]} 53. Rb8 {[%emt 0:00:33]} Bb5 {[%emt 0:00:25]} 54. d4+ {[%emt 0:00:06]} Kb4 {[%emt 0:00:05]} 55. Bc6 {[%emt 0:00:54]} Ra5 {[%emt 0:00:06]} 0-1

[Event "EYCC Open U14 2018"]
[Site "Riga"]
[Date "2018.08.26"]
[Round "6"]
[White "Morgunov, Marc"]
[Black "Kacharava, Nikolozi"]
[Result "1-0"]
[ECO "C42"]
[WhiteElo "2373"]
[BlackElo "2361"]
[Annotator "NA"]
[PlyCount "165"]
[EventDate "2018.08.20"]
[EventType "swiss"]
[EventCountry "LAT"]
[SourceTitle "playchess.com"]
[Source "ChessBase"]
[SourceQuality "1"]
[TimeControl "40/5400+30:1800+30"]

1. e4 {[%emt 0:00:00]} e5 {[%emt 0:00:05]} 2. Nf3 {[%emt 0:00:00]} Nf6 {[%emt 0:00:17]} 3. Nxe5 {[%emt 0:00:00]} d6 {[%emt 0:00:21]} 4. Nf3 {[%emt 0:00:00]} Nxe4 {[%emt 0:00:28]} 5. Nc3 {[%emt 0:00:07]} Nxc3 {[%emt 0:00:50]} 6. dxc3 {[%emt 0:00:08]} Nd7 {[%emt 0:03:34]} 7. Be3 {[%emt 0:05:06]} Be7 {[%emt 0:01:26]} 8. Qd2 {[%emt 0:03:45] C42: Petroff Defence: 3 Nxe5 and unusual White 3rd moves} c6 {[%emt 0:02:51]} (8... O-O 9. O-O-O c6 10. h4 d5 11. Kb1 Nf6 12. Bd3 Re8 13. Ng5 h6 14. f3 c5 15. g4 c4 {1-0 (28) Aronian,L (2767)-Anand,V (2768) Saint Louis 2018}) 9. c4 {[%emt 0:02:57]} O-O {[%emt 0:06:48]} 10. O-O-O {[%emt 0:03:06]} Ne5 {[%emt 0:07:20]} 11. Nxe5 {[%emt 0:03:40]} dxe5 {[%emt 0:00:09]} 12. Bd3 {[%emt 0:00:06]} Be6 {[%emt 0:08:25]} 13. Qe2 {[%emt 0:07:52]} Qa5 {[%emt 0:07:16]} 14. Kb1 {[%emt 0:00:52]} b5 {[%emt 0:08:05]} 15. Bd2 {[%emt 0:11:57]} Qc7 {[%emt 0:04:23] [#]} 16. cxb5 $146 {[%emt 0:15:09]} ({Predecessor:} 16. Bc3 bxc4 17. Bxc4 Bxc4 18. Qxc4 {1-0 (37) Vetoshko,V (2521)-Bykovskiy,O (2261) Suwalki 2018}) 16... cxb5 {[%emt 0:05:14]} 17. Bc3 {[%emt 0:00:16]} f6 {[%emt 0:03:59]} 18. f4 {[%emt 0:11:04]} b4 {[%emt 0:03:27]} 19. Qh5 {[%emt 0:04:05]} g6 {[%emt 0:02:57]} 20. Bxg6 {[%emt 0:00:23]} Bc5 {[%emt 0:05:22]} 21. Bf5 {[%emt 0:00:12]} Bxf5 {[%emt 0:04:01]} 22. Qxf5 {[%emt 0:00:42]} Rad8 {[%emt 0:05:59]} 23. Bd2 {[%emt 0:03:58]} Qd7 {[%emt 0:01:38]} 24. Qh5 {[%emt 0:04:07]} Qe6 {[%emt 0:02:41]} 25. fxe5 {[%emt 0:04:18]} Qxe5 {[%emt 0:00:59]} 26. Qg4+ {[%emt 0:00:22]} Kh8 {[%emt 0:01:27]} 27. Bh6 {[%emt 0:00:17]} Rxd1+ {[%emt 0:01:32]} 28. Rxd1 {[%emt 0:00:11]} f5 {[%emt 0:00:27]} 29. Qh4 {[%emt 0:03:42]} Be7 {[%emt 0:01:15]} 30. Qe1 {[%emt 0:00:45]} Qxe1 {[%emt 0:01:43]} 31. Rxe1 {[%emt 0:00:07]} Rf7 {[%emt 0:01:37]} 32. Kc1 {[%emt 0:02:58]} Kg8 {[%emt 0:00:40]} 33. h3 {[%emt 0:01:07]} Kh8 {[%emt 0:00:55]} 34. Re5 {[%emt 0:01:50]} Kg8 {[%emt 0:00:53]} 35. Kd1 {[%emt 0:01:17]} Rf6 {[%emt 0:03:43]} 36. Rxe7 {[%emt 0:00:09]} Rxh6 {[%emt 0:00:03]} 37. Rxa7 {[%emt 0:00:13]} Rg6 {[%emt 0:03:05]} 38. Ra5 {[%emt 0:01:15]} Rxg2 {[%emt 0:01:13]} 39. Rxf5 {[%emt 0:00:07]} Rg1+ {[%emt 0:00:53]} 40. Kd2 {[%emt 0:00:00]} Rb1 {[%emt 0:00:00]} 41. Ra5 {[%emt 0:00:41]} Kf7 {[%emt 0:02:54]} 42. Ra4 {[%emt 0:03:40]} Rh1 {[%emt 0:01:43]} 43. Rxb4 {[%emt 0:00:26]} Rh2+ {[%emt 0:00:36]} 44. Kc3 {[%emt 0:01:02]} Rxh3+ {[%emt 0:00:16]} 45. Kd2 {[%emt 0:01:38]} Rh2+ {[%emt 0:00:20]} 46. Ke3 {[%emt 0:01:29]} Rh3+ {[%emt 0:02:38]} 47. Kf2 {[%emt 0:00:52]} Rh2+ {[%emt 0:00:07]} 48. Kf3 {[%emt 0:01:29]} Rxc2 {[%emt 0:00:20]} 49. a4 {[%emt 0:00:35]} Ke6 {[%emt 0:03:38]} 50. Ke4 {[%emt 0:01:52]} Kd6 {[%emt 0:02:23]} 51. Kd4 {[%emt 0:01:28]} h5 {[%emt 0:03:25]} 52. Kd3 {[%emt 0:01:50]} Rg2 {[%emt 0:01:27]} 53. Kc3 {[%emt 0:01:13]} Rg3+ {[%emt 0:04:33]} 54. Kc2 {[%emt 0:01:52]} Rg2+ {[%emt 0:00:33]} 55. Kb3 {[%emt 0:02:15]} Rg3+ {[%emt 0:03:14]} 56. Ka2 {[%emt 0:00:21]} Rg4 {[%emt 0:03:16]} 57. Rb6+ {[%emt 0:00:09]} Kc7 {[%emt 0:00:45]} 58. Ra6 {[%emt 0:00:07]} Kb7 {[%emt 0:04:25]} 59. Ra5 {[%emt 0:00:08]} h4 {[%emt 0:01:18]} 60. Ka3 {[%emt 0:00:38]} Rg1 {[%emt 0:02:55]} 61. Rh5 {[%emt 0:01:19]} Rh1 {[%emt 0:00:52]} 62. a5 {[%emt 0:01:48]} h3 {[%emt 0:00:37]} 63. Ka4 {[%emt 0:00:38]} Rb1 {[%emt 0:00:40]} 64. b4 {[%emt 0:00:28]} Rh1 {[%emt 0:00:30]} 65. Kb5 {[%emt 0:00:16]} Rg1 {[%emt 0:00:22]} 66. Rh7+ {[%emt 0:00:47]} Ka8 {[%emt 0:00:12]} 67. Rxh3 {[%emt 0:00:12]} Rg5+ {[%emt 0:00:16]} 68. Ka4 {[%emt 0:00:41]} Rg7 {[%emt 0:00:42]} 69. a6 {[%emt 0:01:33]} Ka7 {[%emt 0:00:33]} 70. Ka5 {[%emt 0:00:13]} Rg5+ {[%emt 0:00:22]} 71. b5 {[%emt 0:00:21]} Rf5 {[%emt 0:00:42]} 72. Rh7+ {[%emt 0:00:34]} Ka8 {[%emt 0:00:30]} 73. Rd7 {[%emt 0:01:01]} Rc5 {[%emt 0:00:49]} 74. Kb6 {[%emt 0:00:40]} Rc8 {[%emt 0:00:14]} 75. Ka5 {[%emt 0:02:12]} Rc5 {[%emt 0:00:49]} 76. Kb4 {[%emt 0:00:25]} Rh5 {[%emt 0:00:22]} 77. b6 {[%emt 0:00:14]} Rh4+ {[%emt 0:00:27]} 78. Kc5 {[%emt 0:00:07]} Rh8 {[%emt 0:00:14]} 79. Kc6 {[%emt 0:01:11]} Rg8 {[%emt 0:00:42]} 80. b7+ {[%emt 0:01:02]} Kb8 {[%emt 0:00:35]} 81. Rd6 {[%emt 0:00:07]} Ka7 {[%emt 0:00:37]} 82. Kc7 {[%emt 0:00:59]} Rc8+ {[%emt 0:00:34]} 83. bxc8=N+ {[%emt 0:00:15]} 1-0